bitfinex/quotes_BTCUSD_20241205
["timestamp","ask_amount","ask_price","bid_price","bid_amount"]
[1733357878584,0.10947747,98666.0,98665.0,0.101352]
[1733357879012,0.10947747,98666.0,98665.0,0.105352]
[1733357879233,0.10771259,98666.0,98665.0,0.105352]
[1733357880980,0.003,98666.0,98665.0,0.105352]
[1733357881447,0.003,98666.0,98665.0,0.153652]
[1733357881941,0.003,98666.0,98665.0,0.152652]
[1733357882163,0.10771259,98666.0,98665.0,0.5167567]
[1733357882371,0.10471259,98666.0,98665.0,0.09070626]
[1733357882622,0.10471259,98666.0,98664.0,0.19206026]
[1733357882839,0.0017314,98667.0,98665.0,0.001]
[1733357883292,0.0017314,98667.0,98660.0,0.101357]
[1733357883502,0.0017314,98667.0,98661.0,0.101357]
[1733357883722,0.0017314,98667.0,98665.0,0.009]
[1733357883936,0.0017314,98667.0,98661.0,0.101357]
[1733357884373,0.0017314,98667.0,98656.0,0.19207132]
[1733357884595,0.0017314,98667.0,98665.0,0.001]
[1733357885248,0.0017314,98667.0,98657.0,0.09070932]
[1733357885469,0.0017314,98667.0,98661.0,0.001]
[1733357886111,0.10471259,98666.0,98661.0,0.001]
[1733357886394,0.00176488,98665.0,98661.0,0.001]
[1733357886607,0.00176488,98665.0,98655.0,0.09070932]
[1733357886608,0.10471259,98664.0,98655.0,0.09070932]
[1733357886819,0.00176488,98663.0,98655.0,0.09070932]
[1733357887072,0.10471259,98662.0,98654.0,0.09070932]
[1733357887279,0.00176488,98661.0,98649.0,0.09070932]
[1733357887483,0.10471259,98660.0,98651.0,0.101367]
[1733357887691,0.00176488,98659.0,98651.0,0.101367]
[1733357887902,0.10471259,98658.0,98655.0,0.001]
[1733357888111,0.10471259,98658.0,98644.0,0.13606398]
[1733357888112,0.00176488,98657.0,98646.0,0.09070932]
[1733357888329,0.10471259,98656.0,98647.0,0.101371]
[1733357888555,0.00176488,98655.0,98646.0,0.09070932]
[1733357888781,0.00176488,98655.0,98638.0,0.09070932]
[1733357888782,0.202746,98646.0,98638.0,0.09070932]
[1733357888997,0.082,98654.0,98637.0,0.000866]
[1733357888998,0.202758,98640.0,98637.0,0.000866]
[1733357889229,0.10647747,98639.0,98637.0,0.000866]
[1733357891199,0.00176488,98638.0,98637.0,0.001866]
[1733357891431,0.10647747,98638.0,98637.0,0.001866]
[1733357892097,0.10647747,98638.0,98637.0,0.000866]
[1733357892318,0.001,98639.0,98638.0,0.10138]
[1733357892543,0.082832,98666.0,98638.0,0.22120932]
[1733357892544,0.00176488,98665.0,98638.0,0.22120932]
[1733357892812,0.10471259,98664.0,98651.0,0.101366]
[1733357893016,0.00176488,98663.0,98649.0,0.19214742]
[1733357893229,0.10471259,98662.0,98649.0,0.19214742]
[1733357893459,0.00176488,98661.0,98650.0,0.09077842]
[1733357893673,0.10471259,98660.0,98650.0,0.09077842]
[1733357893891,0.10471259,98660.0,98649.0,0.101369]
[1733357893892,0.00176488,98659.0,98649.0,0.101369]
[1733357894137,0.10471259,98658.0,98649.0,0.19214742]
[1733357894346,0.00176488,98657.0,98649.0,0.09077842]
[1733357894572,0.10471259,98656.0,98649.0,0.09077842]
[1733357895247,0.00176488,98655.0,98649.0,0.09177842]
[1733357895468,0.10471259,98654.0,98651.0,0.101367]
[1733357895898,0.10471259,98654.0,98651.0,0.202734]
[1733357896125,0.00176488,98653.0,98650.0,0.09077842]
[1733357896335,0.00176488,98653.0,98649.0,0.001]
[1733357896336,0.10471259,98652.0,98649.0,0.001]
[1733357896548,0.00176488,98651.0,98649.0,0.001]
[1733357896813,0.10471259,98650.0,98649.0,0.004]
[1733357897024,0.10471259,98650.0,98649.0,0.001]
[1733357897782,0.10471259,98650.0,98645.0,0.09079079]
[1733357898049,0.00176488,98649.0,98645.0,0.09079079]
[1733357898280,0.10471259,98648.0,98645.0,0.09079079]
[1733357898499,0.00176488,98647.0,98646.0,0.09079079]
[1733357898710,0.10647747,98647.0,98646.0,0.09079079]
[1733357899396,0.00349688,98666.0,98645.0,0.13618618]
[1733357899623,0.10471259,98665.0,98649.0,0.006]
[1733357899858,0.10647747,98665.0,98663.0,0.101355]
[1733357900068,0.10471259,98665.0,98663.0,0.101355]
[1733357900284,0.001732,98666.0,98663.0,0.20271]
[1733357900998,0.004,98665.0,98663.0,0.20271]
[1733357901228,0.001732,98666.0,98663.0,0.20271]
[1733357901448,0.004732,98666.0,98663.0,0.29351672]
[1733357901678,0.004732,98666.0,98665.0,0.101353]
[1733357901931,0.001732,98666.0,98665.0,0.32832997]
[1733357902157,0.001732,98666.0,98665.0,0.66348165]
[1733357902369,0.001732,98666.0,98665.0,0.66345499]
[1733357903038,0.001732,98666.0,98665.0,0.66645499]
[1733357903250,0.001732,98666.0,98665.0,0.43950468]
[1733357903693,0.001732,98666.0,98665.0,0.44350468]
[1733357904343,0.001732,98666.0,98665.0,0.44345093]
[1733357904811,0.001732,98666.0,98665.0,0.44045093]
[1733357905075,0.001732,98666.0,98665.0,0.43845093]
[1733357905296,0.001732,98666.0,98665.0,0.44745093]
[1733357905521,0.001732,98666.0,98665.0,0.33723914]
[1733357905742,0.001732,98666.0,98665.0,0.67233707]
[1733357905985,0.001732,98666.0,98665.0,0.67733707]
[1733357906616,0.001732,98666.0,98665.0,0.66833707]
[1733357906834,0.001732,98666.0,98665.0,0.67733707]
[1733357907270,0.001732,98666.0,98665.0,0.66333707]
[1733357907490,0.001732,98666.0,98665.0,0.67233707]
[1733357907700,0.001732,98666.0,98665.0,0.67733707]
[1733357908123,0.001732,98666.0,98665.0,0.67233707]
[1733357908347,0.001732,98666.0,98665.0,0.44545093]
[1733357908563,0.001732,98666.0,98665.0,0.45045093]
[1733357909183,0.001732,98666.0,98665.0,0.67733707]
[1733357909396,0.001732,98666.0,98665.0,0.45045093]
[1733357909846,0.001732,98666.0,98665.0,0.67733707]
[1733357910055,0.001732,98666.0,98665.0,0.55045093]
[1733357910268,0.001732,98666.0,98665.0,0.70045093]
[1733357911748,1.756e-05,98666.0,98665.0,0.70045093]
[1733357911958,1.756e-05,98666.0,98665.0,0.77715093]
[1733357912246,0.0017312,98678.0,98665.0,0.77715093]
[1733357912247,9.6e-07,98667.0,98666.0,0.2961]
[1733357912461,9.6e-07,98667.0,98666.0,0.63119793]
[1733357912736,0.0017312,98678.0,98666.0,0.63119793]
[1733357912737,0.0017312,98678.0,98677.0,0.20134]
[1733357912965,0.17900605,98688.0,98687.0,0.35133]
[1733357913186,0.16954139,98688.0,98687.0,0.6783418]
[1733357913404,0.16954139,98688.0,98687.0,0.7544418]
[1733357913623,0.16971533,98688.0,98687.0,0.7544418]
[1733357914281,0.16971533,98688.0,98687.0,0.42943]
[1733357914734,0.16971533,98688.0,98687.0,0.42743]
[1733357914957,0.16971533,98688.0,98687.0,0.43643]
[1733357915179,0.16971533,98688.0,98687.0,0.83038342]
[1733357915443,0.17071533,98688.0,98687.0,0.46923293]
[1733357915689,0.00290494,98688.0,98687.0,0.44850026]
[1733357915895,0.13061753,98688.0,98687.0,0.44850026]
[1733357916116,0.13061753,98688.0,98687.0,0.34717026]
[1733357916340,0.13061753,98688.0,98687.0,0.016]
[1733357916797,0.12961753,98688.0,98687.0,0.009]
[1733357917025,0.12961753,98688.0,98687.0,0.013]
[1733357917280,0.12961753,98688.0,98687.0,0.004]
[1733357917473,0.12961753,98688.0,98687.0,0.008]
[1733357917693,0.12961753,98688.0,98678.0,0.101339]
[1733357917905,0.12947747,98687.0,98678.0,0.101339]
[1733357918323,0.12947747,98687.0,98670.0,0.101347]
[1733357918790,0.12947747,98687.0,98674.0,0.101343]
[1733357919239,0.12947747,98687.0,98674.0,0.202686]
[1733357920140,0.12947747,98687.0,98678.0,0.101339]
[1733357920357,0.12947747,98687.0,98678.0,0.202678]
[1733357920787,0.12947747,98687.0,98683.0,0.101333]
[1733357921001,0.12947747,98687.0,98671.0,0.101346]
[1733357921002,0.12771259,98687.0,98684.0,0.101333]
[1733357921219,0.10471259,98687.0,98684.0,0.101333]
[1733357921438,0.00190494,98688.0,98678.0,0.002]
[1733357921658,0.1678,98687.0,98679.0,0.09062535]
[1733357921877,0.1678,98687.0,98680.0,0.09062535]
[1733357922096,0.1678,98687.0,98685.0,0.101332]
[1733357924977,0.1678,98687.0,98685.0,0.104332]
[1733357928148,0.1678,98687.0,98686.0,0.25]
[1733357928437,0.1678,98687.0,98686.0,0.46743059]
[1733357928642,0.00085663,98687.0,98686.0,0.61960704]
[1733357928864,0.0017326,98725.0,98704.0,0.1]
[1733357929088,0.0017326,98725.0,98701.0,0.405264]
[1733357929089,0.0017326,98725.0,98718.0,0.101298]
[1733357929315,0.00231328,98719.0,98718.0,0.10309072]
[1733357930435,0.00231328,98719.0,98718.0,0.101298]
[1733357931371,0.10702587,98719.0,98705.0,0.01989912]
[1733357931646,0.10647747,98718.0,98705.0,0.101311]
[1733357931882,0.10647747,98718.0,98697.0,0.01975737]
[1733357931883,0.00176488,98717.0,98697.0,0.01975737]
[1733357932119,0.00176488,98717.0,98679.0,0.22611845]
[1733357932120,0.10471259,98716.0,98703.0,0.101313]
[1733357932381,0.00176488,98715.0,98699.0,0.101317]
[1733357932678,0.10471259,98714.0,98699.0,0.101317]
[1733357932870,0.00176488,98713.0,98700.0,0.101317]
[1733357933109,0.10471259,98712.0,98700.0,0.101317]
[1733357933344,0.00176488,98711.0,98700.0,0.101317]
[1733357933585,0.10471259,98710.0,98701.0,0.101316]
[1733357933829,0.00176488,98709.0,98705.0,0.003]
[1733357934057,0.10471259,98708.0,98705.0,0.003]
[1733357934329,0.10471259,98708.0,98705.0,0.210622]
[1733357934567,0.00176488,98707.0,98705.0,0.008]
[1733357934814,0.10471259,98706.0,98705.0,0.008]
[1733357935048,0.10471259,98706.0,98687.0,0.101329]
[1733357935312,0.00176488,98705.0,98687.0,0.101329]
[1733357935571,0.00176488,98705.0,98701.0,0.003]
[1733357935572,0.10471259,98704.0,98701.0,0.003]
[1733357935805,0.00176488,98703.0,98683.0,0.101334]
[1733357936101,0.00176488,98703.0,98677.0,0.00011583]
[1733357936102,0.10471259,98702.0,98682.0,0.101335]
[1733357936333,0.07916488,98701.0,98677.0,0.00011583]
[1733357936583,0.10471259,98700.0,98678.0,0.101339]
[1733357936824,0.00176488,98699.0,98677.0,0.00011583]
[1733357937059,0.10471259,98698.0,98682.0,0.101334]
[1733357937301,0.00176488,98697.0,98682.0,0.101334]
[1733357937539,0.10471259,98696.0,98679.0,0.101338]
[1733357937815,0.00176488,98695.0,98679.0,0.101338]
[1733357938047,0.10471259,98694.0,98679.0,0.101338]
[1733357938288,0.10471259,98694.0,98683.0,0.0008651]
[1733357938526,0.00176488,98693.0,98683.0,0.0008651]
[1733357938782,0.10471259,98692.0,98683.0,0.0008651]
[1733357939049,0.00176488,98691.0,98683.0,0.0008651]
[1733357939282,0.10471259,98690.0,98683.0,0.0008651]
[1733357939541,0.00176488,98689.0,98683.0,0.0008651]
[1733357939789,0.10471259,98688.0,98683.0,0.0008651]
[1733357940050,0.00176488,98687.0,98683.0,0.0008651]
[1733357940349,0.10471259,98686.0,98683.0,0.0008651]
[1733357940602,0.00176488,98685.0,98683.0,0.0008651]
[1733357940859,0.10471259,98684.0,98683.0,0.00103904]
[1733357941626,0.10471259,98684.0,98683.0,0.00403904]
[1733357941892,0.202603,98715.0,98694.0,0.101322]
[1733357941893,0.00176488,98709.0,98694.0,0.101322]
[1733357942132,0.00176488,98709.0,98683.0,0.00103904]
[1733357942133,0.10647747,98708.0,98683.0,0.00103904]
[1733357942438,0.10647747,98708.0,98690.0,0.101327]
[1733357942966,0.10647747,98708.0,98685.0,0.101332]
[1733357943410,0.10647747,98708.0,98683.0,0.00303904]
[1733357943630,0.1,98738.0,98683.0,0.00303904]
[1733357943631,0.0499,98740.0,98695.0,0.1]
[1733357943847,0.1,98756.0,98718.0,0.101298]
[1733357943848,0.08286488,98739.0,98718.0,0.101298]
[1733357944060,0.00176488,98739.0,98718.0,0.10094213]
[1733357944309,0.20429388,98751.0,98718.0,0.10094213]
[1733357944527,0.00176488,98750.0,98718.0,0.10094213]
[1733357944974,0.01876086,98745.0,98718.0,0.10094213]
[1733357945199,0.202529,98751.0,98718.0,0.003]
[1733357945200,0.10702587,98719.0,98718.0,0.003]
[1733357945424,0.10702587,98719.0,98710.0,0.101306]
[1733357945638,0.10702587,98719.0,98714.0,0.101302]
[1733357945639,0.10647747,98718.0,98714.0,0.101302]
[1733357945849,0.10647747,98718.0,98714.0,0.202604]
[1733357946069,0.00231328,98719.0,98714.0,0.202604]
[1733357946811,0.00231328,98719.0,98718.0,0.003]
[1733357947310,0.00231328,98719.0,98714.0,0.202604]
[1733357948112,0.00231328,98719.0,98712.0,0.09044738]
[1733357948113,0.10471259,98718.0,98712.0,0.09044738]
[1733357948354,0.10471259,98718.0,98707.0,0.09044738]
[1733357948604,0.10471259,98718.0,98715.0,0.101301]
[1733357948845,0.10471259,98718.0,98715.0,0.202602]
[1733357949084,0.023,98717.0,98715.0,0.101301]
[1733357949325,0.023,98718.0,98715.0,0.101301]
[1733357949573,0.12771259,98718.0,98715.0,0.101301]
[1733357949814,0.00231328,98719.0,98716.0,0.1013]
[1733357950076,0.00231328,98719.0,98716.0,0.2026]
[1733357950553,0.0017298,98718.0,98716.0,0.1013]
[1733357951315,0.0017298,98718.0,98716.0,0.1023]
[1733357951548,0.0017298,98718.0,98716.0,0.1013]
[1733357952009,0.0017298,98718.0,98716.0,0.1023]
[1733357953458,0.0017298,98718.0,98717.0,0.00179284]
[1733357953680,0.02836841,98718.0,98717.0,0.00179284]
[1733357953900,0.02836841,98718.0,98717.0,0.09244643]
[1733357954118,0.02836841,98718.0,98716.0,0.1023]
[1733357954119,0.00035587,98717.0,98716.0,0.10409277]
[1733357954332,0.00035587,98717.0,98716.0,0.66865115]
[1733357954333,0.02699448,98717.0,98716.0,0.66865115]
[1733357954546,0.02699448,98717.0,98716.0,0.85116556]
[1733357954820,0.02699448,98717.0,98716.0,0.89549236]
[1733357955283,0.02699448,98717.0,98716.0,0.91591518]
[1733357955532,0.02699448,98717.0,98716.0,0.7982812]
[1733357955765,0.02699448,98717.0,98716.0,0.83938169]
[1733357955993,0.0268198,98717.0,98716.0,0.83938169]
[1733357956197,0.0268198,98717.0,98716.0,0.73938169]
[1733357956416,0.0268198,98717.0,98716.0,0.73638169]
[1733357956854,0.0268198,98717.0,98716.0,0.73938169]
[1733357957090,0.0017298,98718.0,98717.0,0.25]
[1733357957323,0.0017298,98718.0,98717.0,0.56192622]
[1733357957544,0.0017298,98718.0,98717.0,0.46192622]
[1733357958235,0.0017298,98718.0,98717.0,0.64306083]
[1733357958486,0.0027298,98718.0,98717.0,0.65106083]
[1733357959211,0.0027298,98718.0,98717.0,0.47892622]
[1733357959480,0.0027298,98718.0,98717.0,0.167]
[1733357960202,0.0027298,98718.0,98717.0,0.25754351]
[1733357960460,0.0027298,98718.0,98717.0,0.167]
[1733357960683,0.0027298,98718.0,98717.0,0.1687927]
[1733357961157,0.0027298,98718.0,98717.0,0.25932784]
[1733357961397,0.0027298,98718.0,98717.0,0.25753514]
[1733357961860,0.0027298,98718.0,98717.0,0.167]
[1733357962080,0.0027298,98718.0,98717.0,0.16879271]
[1733357962309,0.0027298,98718.0,98717.0,0.25931873]
[1733357962555,0.0027298,98718.0,98717.0,0.167]
[1733357962779,0.0027298,98718.0,98717.0,0.16879271]
[1733357963008,0.0027298,98718.0,98717.0,0.25931873]
[1733357963241,0.0027298,98718.0,98717.0,0.167]
[1733357963728,0.0027298,98718.0,98717.0,0.16879271]
[1733357964170,0.0027298,98718.0,98717.0,0.16843684]
[1733357964432,0.0027298,98718.0,98717.0,0.25716454]
[1733357964933,0.0027298,98718.0,98717.0,0.16664413]
[1733357965160,0.0027298,98718.0,98717.0,0.017]
[1733357965630,0.10744239,98718.0,98717.0,0.017]
[1733357966120,0.10644239,98718.0,98717.0,0.009]
[1733357966561,0.10644239,98718.0,98717.0,0.01]
[1733357966785,0.10644239,98718.0,98717.0,0.001]
[1733357967018,0.10644239,98718.0,98714.0,0.111432]
[1733357967256,0.10644239,98718.0,98717.0,0.004]
[1733357967480,0.10644239,98718.0,98715.0,0.111431]
[1733357967698,0.12771259,98717.0,98710.0,0.101306]
[1733357967921,0.12771259,98717.0,98708.0,0.111439]
[1733357967922,0.12947747,98717.0,98708.0,0.111439]
[1733357968194,0.12947747,98717.0,98706.0,0.11144]
[1733357968472,0.12947747,98717.0,98714.0,0.001]
[1733357968712,0.12947747,98717.0,98703.0,0.09052041]
[1733357968713,0.12947747,98717.0,98707.0,0.11284245]
[1733357969179,0.12947747,98717.0,98707.0,0.00140345]
[1733357969401,0.023,98715.0,98707.0,0.00140345]
[1733357969624,0.023,98713.0,98707.0,0.00140345]
[1733357969845,0.023,98711.0,98708.0,0.111439]
[1733357970099,0.10647747,98710.0,98708.0,0.111439]
[1733357970832,0.001,98715.0,98714.0,0.111433]
[1733357971093,0.10571259,98715.0,98714.0,0.111433]
[1733357971374,0.001,98715.0,98714.0,0.111433]
[1733357971610,0.001,98715.0,98714.0,0.46430508]
[1733357971866,0.001,98715.0,98714.0,0.6414061]
[1733357972132,0.001,98715.0,98714.0,0.86870714]
[1733357972387,0.0017298,98718.0,98715.0,0.111431]
[1733357972670,0.0017298,98718.0,98717.0,0.2926226]
[1733357972866,0.0017298,98718.0,98717.0,0.111429]
[1733357973099,0.0017298,98718.0,98717.0,0.42610325]
[1733357973795,0.00161397,98718.0,98717.0,0.42610325]
[1733357974085,0.00161397,98718.0,98717.0,0.46803743]
[1733357974315,0.00161397,98718.0,98717.0,0.4673247]
[1733357974536,0.00161397,98718.0,98717.0,0.28855266]
[1733357974985,0.00161397,98718.0,98717.0,0.15265045]
[1733357975245,0.00161397,98718.0,98717.0,0.48314584]
[1733357975463,0.00161397,98718.0,98717.0,0.12471627]
[1733357975692,0.00161397,98718.0,98717.0,0.12150901]
[1733357976134,0.00161397,98718.0,98717.0,0.12650901]
[1733357976614,0.00161397,98718.0,98717.0,0.12471627]
[1733357982961,0.10632656,98718.0,98717.0,0.014]
[1733357983685,0.10809144,98718.0,98717.0,0.014]
[1733357983920,0.10809144,98718.0,98696.0,0.1812523]
[1733357983921,0.10809144,98718.0,98700.0,0.111448]
[1733357984143,0.10647747,98717.0,98700.0,0.111448]
[1733357984632,0.10647747,98717.0,98701.0,0.111447]
[1733357985352,0.10847747,98717.0,98701.0,0.111447]
[1733357985578,0.10847747,98717.0,98714.0,0.0008649]
[1733357985793,0.10647747,98717.0,98714.0,0.0008649]
[1733357986015,0.10747747,98717.0,98714.0,0.0008649]
[1733357986271,0.11047747,98717.0,98714.0,0.0008649]
[1733357986479,0.11247747,98717.0,98714.0,0.0008649]
[1733357986698,0.10947747,98717.0,98714.0,0.0008649]
[1733357987443,0.10647747,98717.0,98714.0,0.0008649]
[1733357987655,0.10947747,98717.0,98714.0,0.0008649]
[1733357988117,0.11147747,98717.0,98714.0,0.0008649]
[1733357988622,0.10971259,98717.0,98714.0,0.0008649]
[1733357989963,0.10971259,98717.0,98715.0,0.111431]
[1733357990399,0.10771259,98717.0,98715.0,0.111431]
[1733357990837,0.10471259,98717.0,98715.0,0.111431]
[1733357991266,0.023,98716.0,98715.0,0.111431]
[1733357991483,0.12771259,98716.0,98715.0,0.111431]
[1733357991701,0.12771259,98716.0,98714.0,0.0008649]
[1733357991918,0.00161397,98718.0,98714.0,0.0008649]
[1733357991919,0.12947747,98715.0,98714.0,0.0008649]
[1733357994646,0.13047747,98715.0,98714.0,0.0008649]
[1733357998366,0.12871259,98715.0,98714.0,0.0008649]
[1733357998584,0.10571259,98715.0,98714.0,0.0008649]
[1733357998805,0.001,98715.0,98714.0,0.0008649]
[1733357999295,0.001,98715.0,98714.0,0.13705345]
[1733357999755,0.001,98715.0,98714.0,0.32457353]
[1733357999975,0.001,98715.0,98714.0,0.54752022]
[1733358000192,0.00173,98717.0,98715.0,0.111431]
[1733358000420,0.00173,98717.0,98716.0,0.32324801]
[1733358000641,0.00173,98717.0,98716.0,0.32145532]
[1733358002020,0.00173,98717.0,98716.0,0.32445532]
[1733358002303,0.00173,98717.0,98716.0,0.47445532]
[1733358002521,0.00231328,98719.0,98718.0,0.3989]
[1733358002522,2.5e-07,98719.0,98718.0,0.3989]
[1733358002740,2.5e-07,98728.0,98727.0,0.341218]
[1733358002952,2.5e-07,98728.0,98727.0,0.66267332]
[1733358003174,0.0001745,98728.0,98727.0,0.66267332]
[1733358003824,5e-07,98728.0,98727.0,0.66267332]
[1733358004049,0.00032925,98736.0,98728.0,0.15]
[1733358004265,0.00032925,98736.0,98735.0,0.111409]
[1733358004483,0.00032925,98736.0,98735.0,0.1132013]
[1733358005615,0.00032925,98736.0,98735.0,0.44365662]
[1733358005837,0.00032925,98736.0,98735.0,0.44186432]
[1733358006934,0.00032925,98736.0,98735.0,0.44486432]
[1733358008569,2.5e-07,98736.0,98735.0,0.65287135]
[1733358008782,2.5e-07,98736.0,98735.0,0.79937135]
[1733358009433,2.5e-07,98736.0,98735.0,0.75259885]
[1733358009648,2.5e-07,98736.0,98735.0,0.74959885]
[1733358009926,0.0002,98759.0,98745.0,0.261398]
[1733358010149,0.0002,98759.0,98745.0,0.57220634]
[1733358010371,0.0002,98759.0,98745.0,0.79122356]
[1733358010591,0.0002,98759.0,98758.0,0.261383]
[1733358010827,0.0002,98759.0,98758.0,0.35196654]
[1733358011044,0.00037419,98759.0,98758.0,0.56858391]
[1733358011278,0.00037419,98759.0,98758.0,0.74964341]
[1733358011510,0.00037419,98759.0,98758.0,0.84144276]
[1733358011511,1.9e-07,98759.0,98758.0,0.84144276]
[1733358011741,3.9e-07,98764.0,98763.0,0.1]
[1733358011980,3.9e-07,98764.0,98763.0,0.55611465]
[1733358012192,3.9e-07,98764.0,98763.0,0.59209552]
[1733358012407,3.9e-07,98764.0,98763.0,0.69209552]
[1733358012625,0.0002,98779.0,98763.0,0.69209552]
[1733358012626,0.0002,98779.0,98774.0,0.15]
[1733358012844,0.0002,98779.0,98778.0,0.39701285]
[1733358013059,0.0002,98779.0,98778.0,0.56568302]
[1733358013287,0.0002,98779.0,98778.0,0.35172217]
[1733358013521,0.0002,98779.0,98778.0,0.26136]
[1733358014208,0.0002,98779.0,98778.0,0.26500413]
[1733358014419,0.0002,98779.0,98778.0,0.11500413]
[1733358014647,0.0002,98779.0,98778.0,0.11100413]
[1733358014904,0.0002,98779.0,98778.0,0.12000413]
[1733358015137,0.0002,98779.0,98778.0,0.12400413]
[1733358015794,0.0002,98779.0,98778.0,0.11500413]
[1733358016011,0.0002,98779.0,98778.0,0.12000413]
[1733358016678,0.00070295,98787.0,98786.0,0.111351]
[1733358016898,0.10541554,98787.0,98786.0,0.111351]
[1733358018537,0.10641554,98787.0,98753.0,0.1]
[1733358018787,0.10641554,98787.0,98750.0,0.13534455]
[1733358018788,0.10647747,98786.0,98779.0,0.111358]
[1733358019006,0.10653449,98786.0,98770.0,0.02049308]
[1733358019244,0.10653449,98786.0,98773.0,0.111365]
[1733358019486,0.10653449,98786.0,98758.0,0.00017419]
[1733358019702,0.10653449,98786.0,98773.0,0.111366]
[1733358020159,5.702e-05,98774.0,98773.0,0.111366]
[1733358020379,0.18336961,98774.0,98767.0,0.111372]
[1733358020600,0.10471259,98773.0,98771.0,0.111368]
[1733358020818,0.10471259,98773.0,98764.0,0.111375]
[1733358020819,0.10647747,98773.0,98764.0,0.111375]
[1733358021304,0.10647747,98773.0,98768.0,0.111371]
[1733358021515,0.10647747,98773.0,98764.0,0.11131798]
[1733358021731,0.10647747,98773.0,98768.0,0.111371]
[1733358022381,0.10647747,98773.0,98768.0,0.222743]
[1733358022604,0.10647747,98773.0,98768.0,0.111371]
[1733358023286,0.10647747,98773.0,98764.0,0.222752]
[1733358023503,0.10647747,98773.0,98769.0,0.11137]
[1733358024835,0.10647747,98773.0,98769.0,0.004]
[1733358026212,0.10471259,98773.0,98770.0,0.222738]
[1733358026881,0.10871259,98773.0,98770.0,0.222738]
[1733358027348,0.00246783,98787.0,98767.0,0.111373]
[1733358027349,0.00070295,98787.0,98786.0,0.111351]
[1733358027638,0.10541554,98787.0,98786.0,0.111351]
[1733358027813,0.00070295,98787.0,98786.0,0.111351]
[1733358028028,0.00070295,98787.0,98786.0,0.11314242]
[1733358028939,0.00070295,98787.0,98786.0,0.15430554]
[1733358029614,0.00070295,98787.0,98786.0,0.11314242]
[1733358029832,0.00070295,98787.0,98786.0,0.111351]
[1733358030100,0.00070295,98787.0,98786.0,0.11514253]
[1733358030794,0.00070295,98787.0,98786.0,0.12314253]
[1733358030979,0.00070295,98787.0,98786.0,0.12114253]
[1733358031258,0.00070295,98787.0,98786.0,0.11314253]
[1733358031502,0.00070295,98787.0,98786.0,0.12114253]
[1733358031727,0.00070295,98787.0,98786.0,0.11414253]
[1733358032188,0.00070295,98787.0,98786.0,0.12214253]
[1733358032621,0.00070295,98787.0,98786.0,0.12114253]
[1733358033124,9.5e-07,98787.0,98786.0,0.35585861]
[1733358033343,0.0792,98836.0,98786.0,0.35585861]
[1733358033344,0.00349448,98835.0,98798.0,0.261338]
[1733358034792,0.00037419,98799.0,98798.0,0.28660618]
[1733358035019,0.00037419,98799.0,98798.0,0.116338]
[1733358039955,0.10508678,98799.0,98798.0,0.005]
[1733358041092,0.10508678,98799.0,98796.0,0.202435]
[1733358041314,0.10471259,98798.0,98796.0,0.202435]
[1733358042700,0.10471259,98798.0,98796.0,0.101217]
[1733358042929,0.10471259,98798.0,98768.0,0.13505868]
[1733358042930,0.02476488,98797.0,98765.0,0.09024714]
[1733358043155,0.02476488,98797.0,98793.0,0.10122]
[1733358043156,0.10471259,98796.0,98793.0,0.10122]
[1733358043373,0.10471259,98796.0,98795.0,0.101219]
[1733358043839,0.10471259,98796.0,98793.0,0.101221]
[1733358044070,0.10471259,98796.0,98786.0,0.101228]
[1733358044071,0.00176488,98795.0,98786.0,0.101228]
[1733358044331,0.00037419,98799.0,98780.0,0.101235]
[1733358044332,0.10471259,98794.0,98780.0,0.101235]
[1733358044557,0.10471259,98794.0,98793.0,0.101221]
[1733358044780,0.00176488,98793.0,98779.0,0.0008643]
[1733358045001,0.10471259,98792.0,98779.0,0.0008643]
[1733358045219,0.10471259,98792.0,98786.0,0.0008643]
[1733358045220,0.00176488,98791.0,98786.0,0.0008643]
[1733358045440,0.023,98789.0,98786.0,0.0008643]
[1733358045691,0.023,98787.0,98786.0,0.0008643]
[1733358045936,0.12947747,98787.0,98786.0,0.0008643]
[1733358047077,0.12943747,98787.0,98786.0,0.0028643]
[1733358047539,0.13043747,98787.0,98786.0,0.0028643]
[1733358048440,0.13043747,98787.0,98786.0,0.0008643]
[1733358048670,0.12450009,98787.0,98786.0,0.0008643]
[1733358048883,0.001,98787.0,98786.0,0.1020923]
[1733358049577,0.0017286,98794.0,98786.0,0.1020923]
[1733358049578,0.0017286,98794.0,98793.0,0.101221]
[1733358049811,0.0017286,98794.0,98786.0,0.0008643]
[1733358049812,0.004,98787.0,98786.0,0.0008643]
[1733358050099,0.13171259,98787.0,98786.0,0.0008643]
[1733358050319,0.12771259,98787.0,98786.0,0.0018643]
[1733358050532,0.14650248,98787.0,98786.0,0.0008643]
[1733358050767,0.14926736,98787.0,98786.0,0.0008643]
[1733358051216,0.14826736,98787.0,98786.0,0.0008643]
[1733358052118,0.17833109,98787.0,98786.0,0.0008643]
[1733358052340,0.14826736,98787.0,98786.0,0.0008643]
[1733358052557,0.18133317,98787.0,98786.0,0.0008643]
[1733358053024,0.17833317,98787.0,98786.0,0.0008643]
[1733358053238,0.18233317,98787.0,98786.0,0.0018643]
[1733358053702,0.26133317,98787.0,98786.0,0.0018643]
[1733358053919,0.25956829,98787.0,98786.0,0.0018643]
[1733358054138,0.26356829,98787.0,98786.0,0.0028643]
[1733358054347,0.51356829,98787.0,98786.0,0.0028643]
[1733358054611,0.61356829,98787.0,98786.0,0.0028643]
[1733358056680,0.61355277,98787.0,98786.0,0.0028643]
[1733358057110,0.56471259,98787.0,98786.0,0.0028643]
[1733358057366,0.6135504,98787.0,98786.0,0.0028643]
[1733358059128,0.55467805,98787.0,98786.0,0.0028643]
[1733358059416,0.35162401,98787.0,98786.0,0.0028643]
[1733358059888,0.33284024,98787.0,98786.0,0.0028643]
[1733358060402,0.32884024,98787.0,98786.0,0.0018643]
[1733358060636,0.32884024,98787.0,98786.0,0.0008643]
[1733358060874,0.3476118,98787.0,98786.0,0.0018643]
[1733358061127,0.3476118,98787.0,98786.0,0.0008643]
[1733358061355,0.32884024,98787.0,98786.0,0.0008643]
[1733358061852,0.32884024,98787.0,98786.0,0.0018643]
[1733358061853,0.33684024,98787.0,98786.0,0.0018643]
[1733358062086,0.35561013,98787.0,98786.0,0.0018643]
[1733358062346,0.33684024,98787.0,98786.0,0.0018643]
[1733358062615,0.34760958,98787.0,98786.0,0.0008643]
[1733358063133,0.31548193,98787.0,98786.0,0.0018643]
[1733358063409,0.32248193,98787.0,98786.0,0.0028643]
[1733358063664,0.22071259,98787.0,98786.0,0.0028643]